[Event "Henry Chilufya Mem 2017"]
[Site "Mansa"]
[Date "2017.10.23"]
[Round "7"]
[White "Ssegwanyi, Arthur"]
[Black "Kiriakov, Petr"]
[Result "1/2-1/2"]
[ECO "C03"]
[WhiteElo "2373"]
[BlackElo "2543"]
[Annotator "ChessBase"]
[PlyCount "43"]
[EventDate "2017.??.??"]
[EventType "swiss"]
[EventCountry "ZAM"]
[SourceTitle "playchess.com"]
[Source "ChessBase"]
[SourceQuality "1"]
[TimeControl "40/5400+30:1800+30"]

1. e4 {[%emt 0:00:00]} e6 {[%emt 0:00:44]} 2. d4 {[%emt 0:00:00]} d5 {[%emt 0:
00:06]} 3. Nd2 {[%emt 0:00:46]} a6 {[%emt 0:00:16]} 4. Ngf3 {[%emt 0:04:12]} c5
{[%emt 0:00:11]} 5. exd5 {[%emt 0:06:38]} exd5 {[%emt 0:00:57]} 6. dxc5 {
[%emt 0:00:21]} Bxc5 {[%emt 0:00:08]} 7. Bd3 {[%emt 0:00:04]} Nf6 {[%emt 0:00:
29]} 8. O-O {[%emt 0:00:32]} O-O {[%emt 0:00:16]} 9. Nb3 {[%emt 0:01:29]} Bb6 {
[%emt 0:01:05]} 10. h3 {[%emt 0:02:46]} Nc6 {[%emt 0:01:58]} 11. c3 {[%emt 0:
00:08]} Re8 {[%emt 0:14:57]} 12. Nbd4 {[%emt 0:02:02]} Qd6 {[%emt 0:10:39]} 13.
Be3 {[%emt 0:02:17]} Bc7 {[%emt 0:00:31]} 14. Re1 {[%emt 0:10:29]} Ne4 {
[%emt 0:04:17]} 15. c4 {[%emt 0:09:21]} Nb4 {[%emt 0:06:50]} 16. Bf1 {[%emt 0:
08:36]} dxc4 {[%emt 0:06:15]} 17. Bxc4 {[%emt 0:00:27]} b5 {[%emt 0:09:28]} 18.
Bb3 {[%emt 0:02:26]} Bb7 19. a3 Nd5 20. Nf5 Qd7 21. N3d4 Nxe3 22. Rxe3 1/2-1/2

[Event "Henry Chilufya Mem 2017"]
[Site "Mansa"]
[Date "2017.10.23"]
[Round "8"]
[White "Chumfwa, Stanley"]
[Black "Phiri, Richmond"]
[Result "1/2-1/2"]
[ECO "E06"]
[WhiteElo "2278"]
[BlackElo "2290"]
[Annotator "NA"]
[PlyCount "30"]
[EventDate "2017.??.??"]
[EventType "swiss"]
[EventCountry "ZAM"]
[SourceTitle "playchess.com"]
[Source "ChessBase"]
[SourceQuality "1"]
[TimeControl "40/5400+30:1800+30"]

1. d4 {[%emt 0:05:03]} Nf6 {[%emt 0:00:11]} 2. c4 {[%emt 0:00:18]} e6 {[%emt 0:
00:07]} 3. g3 {[%emt 0:00:04]} d5 {[%emt 0:00:05]} 4. Bg2 {[%emt 0:00:06]} Be7
{[%emt 0:00:04]} 5. Nf3 {[%emt 0:00:06]} O-O {[%emt 0:00:05]} 6. O-O {[%emt 0:
00:05]} dxc4 {[%emt 0:00:04]} 7. Qc2 {[%emt 0:00:17]} a6 {[%emt 0:00:18]} 8.
Qxc4 {[%emt 0:00:23]} b5 {[%emt 0:00:05]} 9. Qc2 {[%emt 0:00:14]} Bb7 {[%emt 0:
00:06]} 10. Bd2 {[%emt 0:00:13]} Be4 {[%emt 0:00:08]} 11. Qc1 {[%emt 0:00:18]}
Bb7 {[%emt 0:00:13]} 12. Qc2 {[%emt 0:00:28]} Be4 {[%emt 0:00:31]} 13. Qc1 {
[%emt 0:00:07]} Bb7 {[%emt 0:00:15]} 14. Qc2 {[%emt 0:00:19]} Be4 {[%emt 0:00:
07]} 15. Qc1 {[%emt 0:00:11]} Bb7 1/2-1/2